bitfinex/quotes_SOLUSD_20240714
["timestamp","ask_amount","ask_price","bid_price","bid_amount"]
[1720994130853,6.7477,148.2,148.03,10.0]
[1720994130854,15.39,148.15,148.06,20.33]
[1720994131061,81.56,148.19,148.06,20.33]
[1720994131062,15.39,148.14,148.1,15.39]
[1720994131389,61.56,148.19,148.1,15.39]
[1720994131593,15.39,148.14,148.1,15.39]
[1720994131890,15.39,148.15,148.1,15.39]
[1720994132687,15.39,148.15,148.11,15.39]
[1720994134916,61.56,148.19,148.11,15.39]
[1720994135090,15.39,148.16,148.11,15.39]
[1720994135283,15.39,148.15,148.08,20.33]
[1720994135488,15.39,148.15,148.1,15.39]
[1720994135712,15.39,148.15,148.09,45.0]
[1720994135908,15.39,148.15,148.11,15.39]
[1720994136516,15.39,148.16,148.11,15.39]
[1720994139018,6.7477,148.2,148.11,15.39]
[1720994139191,15.39,148.16,148.11,15.39]
[1720994139817,6.7477,148.2,148.11,15.39]
[1720994140017,15.39,148.16,148.11,15.39]
[1720994140317,15.39,148.14,148.08,1.35005224]
[1720994140497,15.39,148.14,148.09,15.39]
[1720994141304,6.7486,148.18,148.09,15.39]
[1720994141509,15.39,148.14,148.1,15.39]
[1720994142219,15.39,148.15,148.1,15.39]
[1720994143415,15.39,148.14,148.1,15.39]
[1720994143605,15.39,148.14,148.05,81.89]
[1720994143808,15.39,148.14,148.09,15.39]
[1720994143992,15.39,148.14,148.1,15.39]
[1720994144221,6.7486,148.18,148.1,15.39]
[1720994144424,15.39,148.14,148.1,15.39]
[1720994146123,20.0,148.19,148.1,15.39]
[1720994146305,15.39,148.15,148.1,15.39]
[1720994146494,45.0,148.18,148.1,15.39]
[1720994146696,15.39,148.15,148.1,15.39]
[1720994147620,45.0,148.18,148.06,65.33]
[1720994147804,15.39,148.15,148.1,15.39]
[1720994147999,81.56,148.19,148.1,15.39]
[1720994148333,15.39,148.15,148.1,15.39]
[1720994148829,15.39,148.15,148.11,15.39]
[1720994150531,15.39,148.16,148.11,15.39]
[1720994152419,15.39,148.13,147.99,12.76248944]
[1720994152615,15.39,148.13,148.09,15.39]
[1720994152918,15.39,148.14,148.09,15.39]
[1720994153824,15.39,148.13,148.09,15.39]
[1720994154529,15.39,148.14,148.09,15.39]
[1720994155041,15.39,148.15,148.1,15.39]
[1720994155914,6.7492,148.17,148.1,15.39]
[1720994156129,15.39,148.14,148.05,61.56]
[1720994156339,15.39,148.14,148.1,15.39]
[1720994157737,6.7492,148.17,148.1,15.39]
[1720994157925,20.0,148.16,148.1,15.39]
[1720994158128,15.39,148.15,148.1,15.39]
[1720994158533,20.0,148.16,148.1,15.39]
[1720994158739,15.39,148.15,148.04,20.33]
[1720994158919,15.39,148.15,148.1,15.39]
[1720994160828,15.39,148.15,148.06,20.33]
[1720994161136,15.39,148.15,148.07,65.0]
[1720994161340,20.0,148.17,148.1,15.39]
[1720994161513,15.39,148.15,148.1,15.39]
[1720994162137,15.39,148.14,148.1,15.39]
[1720994163424,20.0,148.17,148.1,15.39]
[1720994163425,15.39,148.15,148.1,15.39]
[1720994165249,15.39,148.15,148.07,65.0]
[1720994165545,15.39,148.15,148.1,15.39]
[1720994167926,6.7482,148.19,148.1,15.39]
[1720994168135,15.39,148.15,148.07,65.0]
[1720994168321,15.39,148.15,148.1,15.39]
[1720994168522,27.79893511,148.21,148.07,85.33]
[1720994168742,67.92211846,148.2,148.07,85.33]
[1720994168925,15.39,148.15,148.1,15.39]
[1720994169647,6.7481,148.19,148.1,15.39]
[1720994169826,15.39,148.16,148.11,15.39]
[1720994170143,6.7481,148.19,148.11,15.39]
[1720994170347,15.39,148.16,148.11,15.39]
[1720994171143,68.3081,148.19,148.11,15.39]
[1720994171144,15.39,148.15,148.11,15.39]
[1720994171342,15.39,148.17,148.12,15.39]
[1720994171942,15.39,148.17,148.13,15.39]
[1720994172333,6.7468,148.22,148.13,15.39]
[1720994172540,15.39,148.17,148.13,15.39]
[1720994172938,6.7464,148.23,148.13,15.39]
[1720994173134,15.39,148.17,148.13,15.39]
[1720994174737,15.39,148.17,148.12,15.39]
[1720994175042,15.39,148.17,148.09,20.33]
[1720994175243,15.39,148.17,148.12,15.39]
[1720994176150,2.72677627,148.23,148.12,15.39]
[1720994176365,15.39,148.17,148.12,15.39]
[1720994176732,15.39,148.17,148.09,20.33]
[1720994176936,15.39,148.17,148.12,15.39]
[1720994178562,51.7463,148.23,148.13,15.39]
[1720994178563,15.39,148.18,148.13,15.39]
[1720994179868,45.0,148.23,148.13,15.39]
[1720994180072,15.39,148.18,148.13,15.39]
[1720994181577,45.0,148.23,148.13,15.39]
[1720994181740,15.39,148.18,148.13,15.39]
[1720994182445,2.66447439,148.24,148.14,15.39]
[1720994182648,324.87782043,148.26,148.15,15.39]
[1720994182856,20.0,148.25,148.15,15.39]
[1720994183047,15.39,148.2,148.15,15.39]
[1720994184154,15.39,148.2,148.1,47.39250231]
[1720994184354,15.39,148.2,148.15,15.39]
[1720994184774,20.0,148.25,148.15,15.39]
[1720994184981,15.39,148.2,148.12,20.33]
[1720994185176,45.0,148.24,148.15,15.39]
[1720994185340,15.39,148.2,148.15,15.39]
[1720994185766,15.39,148.21,148.12,35.72]
[1720994185945,266.02100002,148.26,148.16,15.39]
[1720994186144,15.39,148.21,148.16,15.39]
[1720994186368,15.39,148.21,148.13,40.33]
[1720994186570,15.39,148.21,148.16,15.39]
[1720994187884,327.58100002,148.26,148.16,15.39]
[1720994188060,15.39,148.21,148.16,15.39]
[1720994188782,15.39,148.21,148.14,65.33]
[1720994188949,15.39,148.21,148.16,15.39]
[1720994190298,15.39,148.22,148.17,15.39]
[1720994191360,327.58100002,148.26,148.17,15.39]
[1720994191560,15.39,148.22,148.17,15.39]
[1720994193146,15.39,148.22,148.15,40.33]
[1720994193351,15.39,148.22,148.17,15.39]
[1720994193763,15.39,148.21,148.16,15.39]
[1720994193976,15.39,148.21,148.15,20.0]
[1720994194181,15.39,148.21,148.13,40.33]
[1720994194391,10.02100002,148.26,148.13,50.33]
[1720994194688,10.02100002,148.26,148.18,15.39]
[1720994194858,15.39,148.23,148.18,15.39]
[1720994195772,10.02100002,148.26,148.18,15.39]
[1720994195975,15.39,148.24,148.19,15.39]
[1720994196570,10.02100002,148.26,148.19,15.39]
[1720994196777,2.70317959,148.26,148.19,15.39]
[1720994196971,15.39,148.24,148.19,15.39]
[1720994197177,15.39,148.25,148.19,15.39]
[1720994197872,20.0,148.28,148.19,15.39]
[1720994198185,15.39,148.25,148.2,15.39]
[1720994198568,20.0,148.28,148.21,15.39]
[1720994198884,15.39,148.26,148.17,20.33]
[1720994199180,15.39,148.25,148.21,15.39]
[1720994199386,20.0,148.29,148.21,15.39]
[1720994199589,15.39,148.26,148.21,15.39]
[1720994199791,20.0,148.29,148.21,15.39]
[1720994200088,15.39,148.26,148.18,65.33]
[1720994200256,15.39,148.26,148.21,15.39]
[1720994203690,20.0,148.29,148.22,1.34916405]
[1720994204085,15.39,148.26,148.22,1.34916405]
[1720994204286,20.0,148.29,148.18,65.33]
[1720994204592,3.7514494,148.3,148.23,15.39]
[1720994204781,3.7514494,148.3,148.22,20.33]
[1720994205086,15.39,148.28,148.24,15.39]
[1720994205301,3.7514494,148.3,148.24,15.39]
[1720994205465,15.39,148.29,148.24,15.39]
[1720994206490,19.1414494,148.3,148.25,65.33]
[1720994206672,19.1414494,148.3,148.25,60.39]
[1720994206986,19.1414494,148.3,148.25,15.39]
[1720994207592,3.7514494,148.3,148.25,15.39]
[1720994207893,19.1414494,148.3,148.25,15.39]
[1720994208271,3.7514494,148.3,148.23,20.33]
[1720994208585,3.7514494,148.3,148.27,20.33]
[1720994208762,3.7514494,148.3,148.28,15.39]
[1720994208967,3.7514494,148.3,148.29,15.39]
[1720994209189,3.7514494,148.3,148.28,15.39]
[1720994209786,0.8657517,148.31,148.29,35.72]
[1720994209977,0.8657517,148.31,148.3,45.0]
[1720994210190,0.8657517,148.31,148.3,15.39]
[1720994210371,0.8657517,148.31,148.26,10.0]
[1720994210588,0.8657517,148.31,148.3,15.39]
[1720994210774,0.8657517,148.31,148.27,65.0]
[1720994210970,0.8657517,148.31,148.3,15.39]
[1720994211280,0.8657517,148.31,148.3,80.72]
[1720994212593,0.8657517,148.31,148.3,69.03844851]
[1720994212821,0.8657517,148.31,148.3,84.42844851]
[1720994213489,0.04010774,148.33,148.3,84.42844851]
[1720994213695,0.04010774,148.33,148.32,20.33]
[1720994214013,0.04010774,148.33,148.31,20.33]
[1720994214205,0.04010774,148.33,148.31,3.70844851]
[1720994214503,0.04010774,148.33,148.31,48.70844851]
[1720994215081,0.04010774,148.33,148.31,24.03844851]
[1720994215407,13.88005634,148.33,148.31,24.03844851]
[1720994216281,13.88005634,148.33,148.32,3.70844851]
[1720994221612,13.88005634,148.33,148.32,48.70844851]
[1720994222114,13.88005634,148.33,148.32,69.03844851]
[1720994227717,13.88005634,148.33,148.32,3.70844851]
[1720994232111,13.88005634,148.33,148.32,24.03844851]
[1720994232312,13.88005634,148.33,148.32,69.03844851]
[1720994233029,13.88005634,148.33,148.32,3.70844851]
[1720994236237,29.27005634,148.33,148.32,3.70844851]
[1720994237734,29.27005634,148.33,148.32,2.70844851]
[1720994238122,13.88005634,148.33,148.32,2.70844851]
[1720994238314,29.27005634,148.33,148.32,2.70844851]
[1720994238515,13.88005634,148.33,148.32,2.70844851]
[1720994239412,29.27005634,148.33,148.32,2.70844851]
[1720994241610,13.88005634,148.33,148.32,2.70844851]
[1720994241811,29.27005634,148.33,148.32,2.70844851]
[1720994242535,13.88005634,148.33,148.32,2.70844851]
[1720994248629,13.88005634,148.33,148.32,63.09844851]
[1720994248936,13.88005634,148.33,148.32,47.70844851]
[1720994250721,13.88005634,148.33,148.32,69.38658064]
[1720994250927,13.88005634,148.33,148.32,68.03844851]
[1720994254132,13.88005634,148.33,148.32,86.20156767]
[1720994254335,13.88005634,148.33,148.32,70.81156767]
[1720994254843,13.88005634,148.33,148.32,5.48156767]
[1720994256245,13.88005634,148.33,148.32,50.48156767]
[1720994262854,13.88005634,148.33,148.32,5.48156767]
[1720994264555,13.88005634,148.33,148.32,2.70844851]
[1720994265031,13.88005634,148.33,148.32,4.05659573]
[1720994265436,13.88005634,148.33,148.32,2.70844851]
[1720994266724,13.88005634,148.33,148.32,19.44659984]
[1720994266929,13.88005634,148.33,148.32,2.70844851]
[1720994267850,13.88005634,148.33,148.32,4.05661041]
[1720994268052,13.88005634,148.33,148.32,2.70844851]
[1720994268431,13.88005634,148.33,148.32,19.44661074]
[1720994269053,13.88005634,148.33,148.32,38.42844851]
[1720994269266,13.88005634,148.33,148.32,83.42844851]
[1720994269765,13.88005634,148.33,148.32,68.03844851]
[1720994270058,13.88005634,148.33,148.32,83.42844851]
[1720994270256,13.88005634,148.33,148.32,93.42844851]
[1720994271142,13.88005634,148.33,148.32,83.42844851]
[1720994271358,13.88005634,148.33,148.32,93.42844851]
[1720994271745,13.88005634,148.33,148.32,83.42844851]
[1720994272151,13.88005634,148.33,148.32,68.03844851]
[1720994272448,13.88005634,148.33,148.32,83.42844851]
[1720994273035,13.88005634,148.33,148.32,154.98844851]
[1720994274160,0.8266558,148.46,148.32,154.98844851]
[1720994274161,0.8266558,148.46,148.34,10.0]
[1720994274358,0.8266558,148.46,148.38,10.0]
[1720994274558,0.8266558,148.46,148.43,15.39]
[1720994274740,0.8266558,148.46,148.41,1.34713773]
[1720994275052,0.8266558,148.46,148.42,35.72]
[1720994275252,0.8266558,148.46,148.43,21.67698766]
[1720994275446,0.8266558,148.46,148.45,20.33]
[1720994275655,0.8266558,148.6,148.45,37.06666028]
[1720994275656,6.7305,148.58,148.45,37.06666028]
[1720994275846,2.91544038,148.57,148.44,10.0]
[1720994276046,15.39,148.54,148.45,45.0]
[1720994276249,3.62095731,148.6,148.49,20.33]
[1720994276463,3.62095731,148.6,148.53,15.39]
[1720994276667,3.62095731,148.6,148.47,61.56]
[1720994276866,256.0,148.62,148.47,61.56]
[1720994276867,15.39,148.58,148.53,15.39]
[1720994277052,6.7293,148.61,148.52,12.39]
[1720994277253,257.29694401,148.62,148.47,91.89]
[1720994277455,7.63980514,148.64,148.56,15.39]
[1720994277456,2.36184194,148.64,148.56,15.39]
[1720994277656,2.36184194,148.64,148.57,1.34586785]
[1720994277859,2.36184194,148.64,148.57,15.39]
[1720994278055,15.39,148.62,148.57,14.39]
[1720994278256,2.36184194,148.64,148.5,30.33]
[1720994278453,15.39,148.62,148.57,15.39]
[1720994278662,2.36184194,148.64,148.6,15.39]
[1720994278858,2.36184194,148.64,148.54,71.56]
[1720994279058,2.36184194,148.64,148.61,15.39]
[1720994279578,2.36184194,148.64,148.55,45.0]
[1720994279579,2.36184194,148.64,148.63,15.39]
[1720994279744,2.36184194,148.64,148.56,20.0]
[1720994280051,2.36184194,148.64,148.54,10.0]
[1720994280255,2.36184194,148.64,148.55,20.0]
[1720994280460,2.36184194,148.64,148.6,15.39]
[1720994280659,17.75184194,148.64,148.52,10.0]
[1720994280866,17.75184194,148.64,148.59,15.39]
[1720994281062,15.39,148.63,148.51,10.0]
[1720994281381,9.08954194,148.64,148.51,10.0]
[1720994281683,9.08954194,148.64,148.49,30.33]
[1720994281684,15.39,148.62,148.49,40.33]
[1720994281858,6.7293,148.61,148.49,11.34594121]
[1720994282059,15.39,148.58,148.53,15.39]
[1720994282249,30.51,148.63,148.48,30.51]
[1720994282449,6.73,148.59,148.48,30.51]
[1720994282672,6.7295,148.6,148.48,30.51]
[1720994282855,30.51,148.62,148.48,30.51]
[1720994283056,6.7295,148.6,148.48,30.51]
[1720994283355,6.7309,148.57,148.48,30.51]
[1720994283569,6.7313,148.56,148.45,30.51]
[1720994283768,30.51,148.59,148.45,30.51]
[1720994284278,6.7321,148.55,148.45,30.51]
[1720994284664,6.7323,148.54,148.45,30.51]
[1720994284977,75.51,148.58,148.43,10.0]
[1720994285151,6.7326,148.54,148.43,10.0]
[1720994285352,75.51,148.58,148.41,40.51]
[1720994285776,6.7326,148.53,148.41,40.51]
[1720994285973,6.7336,148.51,148.41,30.51]
[1720994286275,6.733,148.53,148.41,30.51]
[1720994286479,6.7332,148.52,148.41,30.51]
[1720994286851,30.51,148.55,148.41,30.51]
[1720994286852,6.7337,148.51,148.41,30.51]
[1720994287066,6.734,148.5,148.42,1.34720239]
[1720994287271,30.51,148.55,148.39,30.51]
[1720994287568,6.7345,148.49,148.39,30.51]
[1720994288154,6.7345,148.49,148.38,27.37879601]
[1720994288155,6.735,148.48,148.38,27.37879601]
[1720994288660,6.7355,148.47,148.38,27.37879601]
[1720994288855,6.7349,148.48,148.38,27.37879601]
[1720994289165,30.51,148.51,148.38,27.37879601]
[1720994289573,30.51,148.51,148.39,30.51]
[1720994289574,6.7335,148.51,148.39,30.51]
[1720994289766,6.7335,148.51,148.4,21.6771657]
[1720994290154,6.7335,148.51,148.39,50.84]
[1720994290680,6.734,148.5,148.39,50.84]
[1720994290879,6.7344,148.49,148.39,50.84]
[1720994291457,6.7344,148.49,148.39,20.33]
[1720994291684,6.7344,148.49,148.38,7.04879601]
[1720994291874,6.7344,148.49,148.39,20.33]
[1720994292482,30.51,148.53,148.38,7.04879601]
[1720994292685,30.51,148.47,148.38,7.04879601]
[1720994292989,30.51,148.47,148.37,20.33]
[1720994293185,37.2454,148.47,148.37,20.33]
[1720994293385,6.7359,148.46,148.37,20.33]
[1720994293766,37.2454,148.47,148.37,20.33]
[1720994293965,37.2454,148.47,148.36,7.0510655]
[1720994294164,6.736,148.46,148.36,7.0510655]
[1720994294364,6.736,148.46,148.36,27.3810655]
[1720994294870,6.736,148.46,148.36,7.0510655]
[1720994295279,6.7362,148.45,148.36,7.0510655]
[1720994295479,6.7358,148.46,148.36,7.0510655]
[1720994295983,34.52524374,148.56,148.36,7.0510655]
[1720994296294,34.52524374,148.56,148.37,45.0]
[1720994296295,30.51,148.48,148.37,45.0]
[1720994296472,30.51,148.48,148.36,7.0510655]
[1720994296669,16.8319,148.53,148.36,7.0510655]
[1720994296972,6.7353,148.47,148.36,7.0510655]
[1720994297189,6.7359,148.46,148.36,7.0510655]
[1720994297505,6.7359,148.46,148.36,8.39855749]
[1720994297672,6.7353,148.47,148.36,8.39855749]
[1720994297868,30.51,148.49,148.36,7.0510655]
[1720994298094,45.0,148.48,148.36,7.0510655]
[1720994298285,6.7362,148.46,148.36,7.0510655]
[1720994298674,6.7369,148.44,148.36,7.0510655]
[1720994299798,6.2363,148.45,148.36,7.0510655]
[1720994300894,6.7367,148.44,148.36,7.0510655]
[1720994301778,6.7363,148.45,148.36,7.0510655]
[1720994301986,30.51,148.46,148.36,7.0510655]
[1720994302187,6.7362,148.45,148.36,7.0510655]
[1720994302696,6.7355,148.47,148.37,1.34776923]
[1720994302903,51.7358,148.46,148.37,1.34776923]
[1720994303090,6.7367,148.45,148.37,1.34776923]
[1720994303291,6.7367,148.45,148.36,7.0510655]
[1720994303486,6.7367,148.45,148.37,1.34773998]
[1720994304699,30.51,148.47,148.37,1.34776152]
[1720994304901,45.0,148.46,148.36,7.0510655]
[1720994305108,51.7359,148.46,148.36,7.0510655]
[1720994305283,6.7359,148.46,148.36,7.0510655]
[1720994305699,6.7362,148.45,148.36,7.0510655]
[1720994306386,30.51,148.47,148.37,1.3477723]
[1720994306583,30.51,148.47,148.36,7.0510655]
[1720994306584,6.7363,148.45,148.36,7.0510655]
[1720994306892,6.7367,148.44,148.36,7.0510655]
[1720994307983,6.7363,148.45,148.36,7.0510655]
[1720994308699,45.0,148.46,148.37,1.3477792]
[1720994308875,30.51,148.48,148.37,1.3477792]
[1720994309077,6.7354,148.47,148.36,27.3810655]
[1720994309789,6.7354,148.47,148.36,7.0510655]
[1720994310185,6.7366,148.45,148.36,7.0510655]
[1720994310385,45.0,148.47,148.36,7.0510655]
[1720994310581,45.0,148.47,148.37,1.34778655]
[1720994310787,45.0,148.47,148.36,7.0510655]
[1720994311107,45.0,148.47,148.33,20.33]
[1720994311288,45.0,148.47,148.36,7.05122257]
[1720994311493,51.7355,148.47,148.32,42.8139329]
[1720994311694,51.7355,148.47,148.36,7.0510886]
[1720994312082,51.7355,148.47,148.33,65.33]
[1720994312385,45.0,148.47,148.36,7.05108802]
[1720994312591,45.0,148.47,148.37,1.34772498]
[1720994312794,45.0,148.47,148.32,42.8139329]
[1720994312795,45.0,148.47,148.34,7.05143379]
[1720994312985,51.7353,148.47,148.35,1.34771772]
[1720994313185,51.7353,148.47,148.36,1.34763783]
[1720994313394,51.7357,148.47,148.34,7.05143379]
[1720994313591,6.7359,148.46,148.34,7.05143379]
[1720994314384,45.0,148.45,148.34,7.05143379]
[1720994315207,45.0,148.46,148.34,7.05143379]
[1720994315411,51.7358,148.46,148.34,7.05143379]
[1720994316202,15.29,148.42,148.36,15.29]
[1720994316789,51.7358,148.46,148.36,15.29]
[1720994317115,15.29,148.39,148.34,7.05143379]
[1720994317790,15.29,148.4,148.35,15.29]
[1720994318404,15.29,148.41,148.35,15.29]
[1720994318609,15.29,148.41,148.36,15.29]
[1720994318901,55.17565815,148.46,148.37,15.29]
[1720994319098,15.29,148.42,148.37,15.29]
[1720994319806,15.29,148.42,148.34,7.05143379]
[1720994320010,6.7363,148.45,148.36,15.29]
[1720994320212,15.29,148.42,148.36,15.29]
[1720994320400,6.7363,148.45,148.36,15.29]
[1720994320590,15.29,148.42,148.36,15.29]
[1720994321494,15.29,148.43,148.37,15.29]
[1720994321903,15.29,148.42,148.36,15.29]
[1720994322484,15.29,148.42,148.36,16.63780393]
[1720994323509,15.29,148.42,148.36,15.29]
[1720994324003,15.29,148.42,148.36,16.63781639]
[1720994324182,64.49493246,148.47,148.36,15.29]
[1720994324386,15.29,148.43,148.37,15.29]
[1720994324811,15.29,148.43,148.36,16.63765297]
[1720994324999,15.29,148.42,148.35,7.04784935]
[1720994325507,15.29,148.42,148.35,22.33784935]
[1720994326095,15.29,148.42,148.36,15.29]
[1720994326695,15.29,148.42,148.36,16.63780159]
[1720994327297,6.7364,148.45,148.36,16.63780159]
[1720994327509,15.29,148.42,148.36,16.63780159]
[1720994327711,15.29,148.42,148.36,15.29]
[1720994329299,15.29,148.42,148.35,7.04784935]
[1720994329603,6.7367,148.44,148.36,15.29]
[1720994329811,15.29,148.42,148.36,15.29]
[1720994330200,6.7363,148.45,148.36,1.34781802]
[1720994330403,15.29,148.42,148.36,1.34781802]
[1720994330701,15.29,148.42,148.35,22.33784935]
[1720994330923,6.7363,148.45,148.35,22.33784935]
[1720994331118,15.29,148.42,148.35,22.33784935]
[1720994332196,61.16,148.47,148.36,15.29]
[1720994332197,67.8957,148.47,148.36,15.29]
[1720994332404,15.29,148.43,148.37,60.29]
[1720994333823,6.7354,148.47,148.38,15.29]
[1720994334123,15.29,148.43,148.38,15.29]
[1720994334812,15.29,148.43,148.38,1.34755957]
[1720994335123,3.45843526,148.49,148.37,15.29]
[1720994335325,15.29,148.42,148.37,15.29]
[1720994337199,15.29,148.42,148.38,1.34761588]
[1720994337400,45.0,148.49,148.38,1.34761588]
[1720994337615,15.29,148.43,148.37,15.29]
[1720994337836,15.29,148.43,148.38,15.29]
[1720994338211,6.7359,148.46,148.37,15.29]
[1720994338415,15.29,148.43,148.36,7.03995265]
[1720994338619,15.29,148.43,148.37,15.29]
[1720994339317,15.29,148.43,148.36,7.03995265]
[1720994339522,77.9992,148.47,148.36,7.03995265]
[1720994339723,15.29,148.39,148.36,7.03995265]
[1720994340935,15.29,148.4,148.36,7.03995265]
[1720994341808,15.29,148.39,148.36,7.03995265]
[1720994342006,77.9992,148.47,148.36,7.03995265]
[1720994342213,6.7373,148.43,148.36,7.03995265]
[1720994342523,15.29,148.4,148.36,7.03995265]
[1720994342826,6.7373,148.43,148.36,22.32995265]
[1720994343416,15.29,148.41,148.36,22.32995265]
[1720994343818,15.29,148.4,148.36,22.32995265]
[1720994345045,15.29,148.4,148.36,7.03995265]
[1720994346718,15.29,148.39,148.36,7.03995265]
[1720994350424,15.29,148.38,148.36,7.03995265]
[1720994351444,6.7377,148.42,148.36,7.03995265]
[1720994351626,15.29,148.38,148.36,7.03995265]
[1720994352843,6.7377,148.42,148.36,7.03995265]
[1720994353022,45.0,148.41,148.36,7.03995265]
[1720994353229,15.29,148.4,148.36,7.03995265]
[1720994353524,45.0,148.41,148.36,7.03995265]
[1720994353725,15.29,148.39,148.36,7.03995265]
[1720994355239,45.0,148.41,148.36,22.32995265]
[1720994355465,15.29,148.4,148.36,7.03995265]
[1720994356541,6.7376,148.42,148.36,7.03995265]
[1720994356847,15.29,148.39,148.36,7.03995265]
[1720994357243,6.7376,148.42,148.36,7.03995265]
[1720994357452,15.29,148.39,148.36,7.03995265]
[1720994358737,15.29,148.38,148.36,7.03995265]
[1720994359147,51.7384,148.41,148.36,7.03995265]
[1720994359659,15.29,148.39,148.36,7.03995265]
[1720994359832,51.7384,148.41,148.36,7.03995265]
[1720994360031,15.29,148.39,148.36,7.03995265]
[1720994362442,15.29,148.38,148.36,7.03995265]
[1720994362636,15.29,148.37,148.36,7.03995265]
[1720994362967,15.29,148.38,148.36,7.03995265]
[1720994363157,45.0,148.41,148.36,7.03995265]
[1720994363361,15.29,148.38,148.36,7.03995265]
[1720994367739,48.34385886,148.41,148.36,7.03995265]
[1720994368450,15.29,148.38,148.36,7.03995265]
[1720994369062,3.34385886,148.41,148.36,7.03995265]
[1720994369360,6.7368,148.44,148.37,15.29]
[1720994369568,6.7368,148.44,148.36,22.32995265]
[1720994369868,15.29,148.4,148.36,7.03995265]
[1720994370043,15.29,148.41,148.36,7.03995265]
[1720994370238,10.39001257,148.47,148.36,7.03995265]
[1720994370446,6.7368,148.44,148.36,7.03995265]
[1720994370963,15.29,148.39,148.36,7.03995265]
[1720994371355,45.0,148.43,148.36,7.03995265]
[1720994371744,15.29,148.4,148.36,7.03995265]
[1720994372152,45.0,148.43,148.36,7.03995265]
[1720994372348,3.28754871,148.47,148.36,7.03995265]
[1720994372554,16.97358012,148.53,148.37,45.0]
[1720994372753,15.29,148.45,148.37,45.0]
[1720994373041,15.29,148.44,148.37,45.0]
[1720994373257,6.7337,148.51,148.37,45.0]
[1720994373601,6.7332,148.52,148.43,15.29]
[1720994373746,17.22246684,148.53,148.42,15.29]
[1720994373945,3.38700298,148.53,148.43,15.29]
[1720994374280,15.29,148.48,148.39,30.33]
[1720994374474,6.7317,148.55,148.4,126.16]
[1720994374690,10.38801474,148.56,148.45,15.29]
[1720994374691,6.7322,148.54,148.45,15.29]
[1720994375007,6.7317,148.55,148.45,15.29]
[1720994375304,3.28555088,148.56,148.46,1.3470739]
[1720994375585,6.7313,148.56,148.42,21.346922]
[1720994375798,6.7313,148.56,148.46,15.29]
[1720994375965,9.95372472,148.6,148.42,40.33]
[1720994375966,3.37620737,148.58,148.42,40.33]
[1720994376175,9.95372472,148.6,148.47,15.29]
[1720994376372,9.95372472,148.6,148.42,20.0]
[1720994376373,15.29,148.51,148.42,20.0]
[1720994376571,3.28475565,148.6,148.47,15.29]
[1720994376770,6.731,148.57,148.47,15.29]
[1720994377091,15.29,148.51,148.47,15.29]
[1720994377295,6.54506882,148.6,148.47,15.29]
[1720994377603,6.54506882,148.6,148.43,65.33]
[1720994377604,15.29,148.55,148.44,30.33]
[1720994377783,3.26031317,148.6,148.49,15.29]
[1720994378015,3.26031317,148.6,148.5,15.29]
[1720994378299,3.26031317,148.6,148.45,65.33]
[1720994378300,6.7295,148.6,148.49,15.29]